bitfinex/quotes_SOLUSD_20241218
["timestamp","ask_amount","ask_price","bid_price","bid_amount"]
[1734553790894,46.59850707,210.49,210.38,46.59850707]
[1734553791059,46.59850707,210.51,210.42,46.59850707]
[1734553791454,46.59850707,210.55,210.44,46.59850707]
[1734553791668,46.59850707,210.56,210.46,46.59850707]
[1734553791989,46.59850707,210.56,210.37,23.776884]
[1734553791990,46.59850707,210.51,210.4,46.59850707]
[1734553792194,0.12549,210.46,210.38,46.59850707]
[1734553792395,46.59850707,210.49,210.4,46.59850707]
[1734553792569,54.68580707,210.57,210.47,46.59850707]
[1734553792899,46.59850707,210.64,210.55,46.59850707]
[1734553793071,8.121,210.65,210.57,46.59850707]
[1734553793274,8.121,210.65,210.59,46.59850707]
[1734553793693,0.12549,210.6,210.51,46.59850707]
[1734553793896,0.12549,210.55,210.47,46.59850707]
[1734553794078,46.59850707,210.54,210.45,46.59850707]
[1734553794266,0.12549,210.55,210.47,46.59850707]
[1734553794805,46.59850707,210.54,210.45,46.59850707]
[1734553794971,0.12549,210.49,210.41,46.59850707]
[1734553795166,46.59850707,210.46,210.37,46.59850707]
[1734553795366,46.59850707,210.44,210.35,46.59850707]
[1734553795567,46.59850707,210.42,210.33,46.59850707]
[1734553795770,46.59850707,210.46,210.37,46.59850707]
[1734553795957,46.59850707,210.46,210.39,46.59850707]
[1734553796165,46.59850707,210.46,210.37,46.59850707]
[1734553796610,8.0363,210.48,210.41,46.59850707]
[1734553797391,0.12549,210.43,210.35,46.59850707]
[1734553797570,46.59850707,210.44,210.35,46.59850707]
[1734553798504,54.63480707,210.48,210.37,46.59850707]
[1734553799014,0.12549,210.47,210.39,46.59850707]
[1734553799166,54.63480707,210.48,210.39,46.59850707]
[1734553799496,65.60528607,210.54,210.4,46.59850707]
[1734553799497,46.59850707,210.5,210.4,46.59850707]
[1734553799666,0.12549,210.45,210.36,46.59850707]
[1734553799987,65.60528607,210.54,210.29,46.59850707]
[1734553799988,0.12549,210.38,210.29,46.59850707]
[1734553800164,30.0,210.47,210.29,46.59850707]
[1734553800365,58.69700707,210.36,210.27,46.59850707]
[1734553800646,12.0985,210.36,210.29,46.59850707]
[1734553800881,46.59850707,210.4,210.31,46.59850707]
[1734553801101,46.59850707,210.4,210.28,12.4976641]
[1734553801102,46.59850707,210.36,210.28,0.6091641]
[1734553801407,12.0985,210.43,210.28,0.6091641]
[1734553801591,12.0985,210.43,210.37,46.59850707]
[1734553801781,0.12549,210.4,210.28,0.6091641]
[1734553801976,46.59850707,210.36,210.28,0.6091641]
[1734553802173,46.59850707,210.38,210.29,46.59850707]
[1734553802386,59.32080707,210.53,210.39,20.0]
[1734553802583,12.7223,210.53,210.48,46.59850707]
[1734553802891,12.7223,210.53,210.39,31.8824]
[1734553803069,12.7223,210.53,210.31,0.71257188]
[1734553803268,12.7223,210.53,210.33,20.0]
[1734553803606,46.59850707,210.49,210.4,46.59850707]
[1734553803770,46.59850707,210.47,210.37,46.59850707]
[1734553804092,46.59850707,210.42,210.33,46.59850707]
[1734553804427,11.8786,210.47,210.28,0.6091641]
[1734553804730,46.59850707,210.44,210.34,46.59850707]
[1734553804930,19.5567,210.56,210.37,46.59850707]
[1734553805229,0.12549,210.43,210.35,46.59850707]
[1734553805520,46.59850707,210.51,210.41,46.59850707]
[1734553805729,7.5352,210.43,210.28,0.6091641]
[1734553805943,0.12549,210.32,210.28,0.6091641]
[1734553806103,46.59850707,210.35,210.28,0.6091641]
[1734553806293,0.12549,210.34,210.28,0.6091641]
[1734553806497,0.12549,210.36,210.28,0.6091641]
[1734553806720,46.59850707,210.37,210.28,0.6091641]
[1734553806999,46.59850707,210.42,210.34,46.59850707]
[1734553807200,46.59850707,210.42,210.32,46.59850707]
[1734553807909,7.5352,210.43,210.34,46.59850707]
[1734553808144,7.5352,210.43,210.38,46.59850707]
[1734553808308,7.5352,210.43,210.32,46.59850707]
[1734553808309,7.6162,210.59,210.46,20.0]
[1734553808512,7.6162,210.59,210.33,0.71291918]
[1734553808823,46.59850707,210.54,210.44,46.59850707]
[1734553809126,46.59850707,210.56,210.46,46.59850707]
[1734553809427,7.6162,210.59,210.55,46.59850707]
[1734553809630,8.0601,210.69,210.61,20.0]
[1734553809808,46.59850707,210.78,210.59,0.71205373]
[1734553810003,46.59850707,210.69,210.59,46.59850707]
[1734553810316,13.2664,210.68,210.44,23.776884]
[1734553810522,13.2664,210.68,210.42,20.0]
[1734553810718,30.0,210.66,210.39,11.8822]
[1734553810920,13.2664,210.68,210.42,20.0]
[1734553811227,13.2664,210.68,210.39,11.8822]
[1734553811228,0.12549,210.55,210.46,46.59850707]
[1734553811436,0.12549,210.48,210.39,46.59850707]
[1734553811600,46.59850707,210.45,210.35,46.59850707]
[1734553811800,46.59850707,210.42,210.33,46.59850707]
[1734553812019,46.59850707,210.39,210.21,46.59850707]
[1734553812242,7.8551,210.47,210.22,0.71322957]
[1734553812439,20.0,210.44,210.22,0.71322957]
[1734553812638,0.12549,210.39,210.21,46.59850707]
[1734553812846,0.12549,210.39,210.24,11.8911]
[1734553813017,0.12549,210.39,210.13,2.84063277]
[1734553813218,46.59850707,210.35,210.27,46.59850707]
[1734553813432,20.0,210.4,210.25,46.59850707]
[1734553813433,0.12549,210.32,210.25,46.59850707]
[1734553813644,46.59850707,210.31,210.23,46.59850707]
[1734553813827,46.59850707,210.29,210.19,46.59850707]
[1734553814036,46.59850707,210.33,210.23,46.59850707]
[1734553814225,46.59850707,210.31,210.21,46.59850707]
[1734553814421,20.0,210.4,210.13,46.59850707]
[1734553814422,20.0,210.26,210.13,46.59850707]
[1734553814622,46.59850707,210.21,210.11,46.59850707]
[1734553815141,46.59850707,210.25,210.16,46.59850707]
[1734553815342,46.59850707,210.27,210.18,46.59850707]
[1734553815547,46.59850707,210.23,210.14,46.59850707]
[1734553815714,46.59850707,210.23,210.13,46.59850707]
[1734553815919,46.59850707,210.27,210.19,46.59850707]
[1734553816149,12.6112,210.38,210.12,0.12549]
[1734553816322,20.3612,210.54,210.16,0.831]
[1734553816641,27.30561281,210.54,210.18,11.8945]
[1734553816837,20.3612,210.54,210.19,0.71309125]
[1734553817039,20.3612,210.54,210.2,23.902374]
[1734553817214,20.3612,210.54,210.39,46.59850707]
[1734553817423,46.59850707,210.43,210.34,46.59850707]
[1734553817646,66.95970707,210.54,210.29,20.0]
[1734553817647,46.59850707,210.41,210.35,0.86929946]
[1734553818146,78.83400707,210.54,210.37,20.0]
[1734553818147,66.95970707,210.54,210.37,20.0]
[1734553818448,20.3612,210.54,210.37,20.0]
[1734553818621,20.3612,210.54,210.35,0.86929946]
[1734553818827,20.3612,210.54,210.37,11.8835]
[1734553819022,20.3612,210.54,210.35,0.86929946]
[1734553819247,46.59850707,210.48,210.37,46.59850707]
[1734553819470,46.59850707,210.5,210.39,46.59850707]
[1734553819772,46.59850707,210.52,210.41,46.59850707]
[1734553819949,46.59850707,210.56,210.45,46.59850707]
[1734553820267,46.59850707,210.6,210.49,46.59850707]
[1734553820489,12.585,210.63,210.45,46.59850707]
[1734553820490,46.59850707,210.56,210.45,46.59850707]
[1734553820874,46.59850707,210.61,210.51,46.59850707]
[1734553821051,12.585,210.63,210.55,46.59850707]
[1734553821244,46.59850707,210.69,210.59,46.59850707]
[1734553821448,46.59850707,210.67,210.57,46.59850707]
[1734553821675,46.59850707,210.59,210.49,46.59850707]
[1734553821853,0.12549,210.58,210.37,11.8838]
[1734553822051,0.12549,210.54,210.26,11.89]
[1734553822245,0.12549,210.54,210.27,0.71299314]
[1734553822472,0.12549,210.54,210.28,0.86958884]
[1734553822681,20.0,210.52,210.29,36.37772683]
[1734553822984,0.12549,210.48,210.39,46.59850707]
[1734553823178,59.40580707,210.55,210.45,46.59850707]
[1734553823476,46.59850707,210.61,210.51,46.59850707]
[1734553823775,13.1864,210.74,210.55,46.59850707]
[1734553823979,13.1864,210.74,210.68,46.59850707]
[1734553824199,54.60750707,210.8,210.72,46.59850707]
[1734553824362,8.009,210.8,210.74,46.59850707]
[1734553824679,6.94441281,210.81,210.76,46.59850707]
[1734553824982,0.6091641,210.82,210.78,46.59850707]
[1734553825154,0.6091641,210.82,210.7,12.57627028]
[1734553825353,0.6091641,210.82,210.77,46.59850707]
[1734553825582,0.6091641,210.82,210.79,46.59850707]
[1734553825769,0.6091641,210.82,210.66,0.71148959]
[1734553825974,46.59850707,210.79,210.68,46.59850707]
[1734553826173,46.59850707,210.81,210.72,46.59850707]
[1734553826374,0.12549,210.78,210.7,46.59850707]
[1734553826576,0.12549,210.73,210.64,46.59850707]
[1734553826771,0.6091641,210.82,210.44,1.93164694]
[1734553826772,0.6091641,210.82,210.65,0.71181825]
[1734553826985,0.6091641,210.82,210.66,0.86802023]
[1734553827183,0.6091641,210.82,210.68,0.12549]
[1734553827375,0.6091641,210.82,210.68,0.86793783]
[1734553827781,0.12549,210.81,210.73,46.59850707]
[1734553827977,0.12549,210.81,210.71,46.59850707]
[1734553828180,47.20767117,210.82,210.71,46.59850707]
[1734553828474,46.59850707,210.78,210.69,46.59850707]
[1734553828693,0.12549,210.7,210.61,46.59850707]
[1734553828871,0.12549,210.67,210.57,46.59850707]
[1734553829068,46.59850707,210.61,210.51,46.59850707]
[1734553829371,20.12549,210.67,210.34,2.1275]
[1734553829372,46.59850707,210.53,210.43,46.59850707]
[1734553829579,0.12549,210.49,210.41,46.59850707]
[1734553829770,0.12549,210.49,210.33,0.71271061]
[1734553829977,46.59850707,210.49,210.4,46.59850707]
[1734553830306,20.0,210.5,210.44,46.59850707]
[1734553830509,46.59850707,210.55,210.46,46.59850707]
[1734553830672,0.12549,210.47,210.4,46.59850707]
[1734553830875,46.72399707,210.49,210.38,46.59850707]
[1734553830876,20.0,210.46,210.38,46.59850707]
[1734553831187,20.0,210.44,210.36,46.59850707]
[1734553831370,0.12549,210.39,210.32,46.59850707]
[1734553831579,0.12549,210.37,210.3,46.59850707]
[1734553831888,0.12549,210.37,210.32,46.59850707]
[1734553832394,46.59850707,210.43,210.34,46.59850707]
[1734553832771,0.12549,210.37,210.3,46.59850707]
[1734553833272,20.0,210.34,210.15,11.8958]
[1734553833481,20.0,210.32,210.23,46.59850707]
[1734553833697,20.0,210.31,210.24,46.59850707]
[1734553834094,0.12549,210.3,210.22,46.59850707]
[1734553834495,46.59850707,210.36,210.26,46.59850707]
[1734553834803,23.902374,210.25,210.16,0.87008537]
[1734553835000,23.902374,210.25,210.11,46.59850707]
[1734553835506,0.12549,210.22,210.12,0.87025101]
[1734553835678,23.902374,210.12,210.07,0.6091641]
[1734553835986,0.12549,210.08,210.07,0.6091641]
[1734553836495,7.5663,210.26,210.07,47.20767117]
[1734553836496,46.59850707,210.15,210.07,47.20767117]
[1734553836809,53.776884,210.25,210.07,0.6091641]
[1734553837103,23.902374,210.21,210.07,0.6091641]
[1734553837278,46.59850707,210.1,210.07,0.6091641]
[1734553837483,23.776884,210.21,209.89,0.71411662]
[1734553837484,23.776884,210.07,210.03,0.1295795]
[1734553837686,23.776884,210.07,209.82,0.6027218]
[1734553837687,23.776884,210.03,209.9,46.59850707]
[1734553837882,0.12549,209.93,209.91,0.87112163]
[1734553838517,46.59850707,209.96,209.91,0.87112163]
[1734553839125,46.59850707,209.94,209.91,0.87112163]
[1734553839288,46.72399707,209.92,209.91,0.87112163]
[1734553839491,0.12549,209.91,209.84,46.59850707]
[1734553839814,46.59850707,209.88,209.82,0.6027218]
[1734553839991,46.59850707,209.92,209.83,46.59850707]
[1734553840184,46.59850707,209.9,209.82,47.20122887]
[1734553840784,46.59850707,209.92,209.82,47.20122887]
[1734553841026,46.59850707,209.99,209.9,46.59850707]
[1734553841229,46.59850707,209.95,209.86,46.59850707]
[1734553841401,0.12549,209.9,209.82,47.20122887]
[1734553841606,0.12549,209.9,209.84,46.59850707]
[1734553841783,41.8999,210.09,209.83,23.776884]
[1734553842002,46.59850707,210.1,209.84,0.12549]
[1734553842204,46.59850707,210.1,209.83,35.691284]
[1734553842404,30.0,210.09,209.83,23.776884]
[1734553842730,0.12549,210.01,209.82,0.6027218]
[1734553842910,0.12549,209.89,209.82,47.20122887]
[1734553843236,0.12549,209.84,209.82,0.6027218]
[1734553844107,46.59850707,209.87,209.82,0.6027218]
[1734553844402,46.59850707,209.83,209.82,0.6027218]
[1734553844619,46.72399707,209.83,209.82,0.6027218]
[1734553844815,46.59850707,209.89,209.82,0.6027218]
[1734553845016,46.59850707,209.83,209.82,0.6027218]
[1734553845218,0.12549,209.82,209.69,46.59850707]
[1734553845431,46.59850707,209.77,209.7,0.871994]
[1734553846047,46.59850707,209.75,209.7,0.871994]
[1734553846344,46.59850707,209.73,209.63,46.59850707]
[1734553846505,46.59850707,209.68,209.64,0.87224357]
[1734553846704,46.59850707,209.72,209.64,0.87224357]
[1734553846906,46.59850707,209.74,209.64,0.87224357]
[1734553847133,46.59850707,209.72,209.64,0.87224357]
[1734553847348,46.59850707,209.78,209.7,46.59850707]
[1734553847549,46.59850707,209.8,209.7,46.59850707]
[1734553847908,8.2872,209.81,209.78,46.59850707]
[1734553848104,8.2872,209.81,209.72,46.59850707]
[1734553848319,0.12549,209.72,209.64,0.87224357]
[1734553848519,46.59850707,209.68,209.64,0.87224357]
[1734553848737,30.0,209.79,209.39,4.2096218]
[1734553849033,0.12549,209.72,209.39,4.2096218]
[1734553849214,0.12549,209.72,209.61,0.87236841]
[1734553849633,0.12549,209.72,209.6,0.1427218]
[1734553849634,46.59850707,209.62,209.6,0.1427218]
[1734553850035,0.12549,209.61,209.6,0.1427218]
[1734553850446,13.2996,209.67,209.6,46.74122887]
[1734553850639,13.2996,209.67,209.63,46.59850707]
[1734553850966,46.59850707,209.74,209.65,46.59850707]
[1734553851164,46.59850707,209.7,209.61,46.59850707]
[1734553851458,46.59850707,209.68,209.6,0.1427218]
[1734553851655,46.59850707,209.68,209.6,23.9196058]
[1734553851836,0.12549,209.65,209.6,0.1427218]
[1734553852035,46.59850707,209.7,209.61,46.59850707]
[1734553852344,46.59850707,209.76,209.67,46.59850707]
[1734553852547,46.59850707,209.7,209.63,46.59850707]
[1734553852756,46.59850707,209.72,209.64,23.776884]
[1734553852979,12.7734,209.77,209.6,35.8469058]
[1734553853296,46.59850707,209.73,209.65,46.59850707]
[1734553853436,0.12549,209.68,209.6,0.1427218]
[1734553853630,0.12549,209.63,209.6,0.1427218]
[1734553853828,0.12549,209.61,209.6,0.1427218]
[1734553854046,0.12549,209.61,209.4,11.9388]
[1734553854251,7.6733,209.62,209.46,46.59850707]
[1734553854252,0.12549,209.54,209.46,46.59850707]
[1734553854561,7.6733,209.62,209.52,46.59850707]
[1734553854860,7.6733,209.62,209.34,23.57576594]
[1734553854861,12.7734,209.77,209.61,0.12549]
[1734553855035,12.7734,209.77,209.65,46.59850707]
[1734553855036,46.59850707,209.74,209.65,46.59850707]
[1734553855239,46.59850707,209.76,209.67,46.59850707]
[1734553855556,46.59850707,209.72,209.63,70.37539107]
[1734553855740,46.59850707,209.73,209.64,46.59850707]
[1734553855939,0.12549,209.72,209.67,46.59850707]
[1734553856135,46.59850707,209.74,209.67,46.59850707]
[1734553856449,12.7734,209.77,209.68,23.776884]
[1734553856450,46.59850707,209.73,209.68,23.776884]
[1734553856648,46.59850707,209.71,209.62,58.52480707]
[1734553856854,0.12549,209.62,209.54,46.59850707]
[1734553857069,46.59850707,209.59,209.52,46.59850707]
[1734553857271,46.59850707,209.63,209.54,46.59850707]
[1734553857458,59.37190707,209.77,209.62,46.59850707]
[1734553857662,12.7734,209.77,209.55,0.71584967]
[1734553857967,12.7734,209.77,209.56,0.12549]
[1734553858174,12.7734,209.77,209.58,0.12549]
[1734553858366,12.3965,209.87,209.6,0.12549]
[1734553858678,46.59850707,209.82,209.76,23.776884]
[1734553859173,46.59850707,209.84,209.76,23.776884]
[1734553859378,12.3965,209.87,209.79,46.59850707]
[1734553859553,0.12549,209.86,209.79,46.59850707]
[1734553859760,46.72399707,209.86,209.8,23.776884]
[1734553859959,12.3965,209.87,209.8,23.776884]
[1734553860277,12.3965,209.87,209.79,70.37539107]
[1734553860483,46.59850707,209.86,209.77,46.59850707]
[1734553860661,46.59850707,209.82,209.75,23.776884]
[1734553860980,0.12549,209.79,209.71,46.59850707]
[1734553861199,0.12549,209.79,209.75,46.59850707]
[1734553861356,12.3965,209.87,209.77,46.59850707]
[1734553861678,12.3965,209.87,209.79,46.59850707]
[1734553861883,7.8486,209.88,209.83,46.59850707]
[1734553862180,46.59850707,209.86,209.77,46.59850707]
[1734553862477,7.8486,209.88,209.02,82.2]
[1734553862478,0.12549,209.77,209.58,23.8568]
[1734553862683,0.12549,209.75,209.61,46.59850707]
[1734553862879,0.12549,209.64,209.56,46.59850707]
[1734553863081,7.6467,209.69,209.52,46.59850707]
[1734553863082,46.59850707,209.61,209.52,46.59850707]
[1734553863290,0.12549,209.68,209.5,46.59850707]
[1734553863471,0.12549,209.56,209.48,46.59850707]
[1734553863686,46.59850707,209.59,209.5,46.59850707]
[1734553863862,46.59850707,209.61,209.52,46.59850707]
[1734553864184,0.12549,209.56,209.48,46.59850707]
[1734553864390,0.12549,209.56,209.5,46.59850707]
[1734553864617,0.12549,209.56,209.52,46.59850707]
[1734553864805,0.12549,209.58,209.5,46.59850707]
[1734553865113,46.59850707,209.55,209.46,46.59850707]
[1734553865311,12.2122,209.57,209.5,46.59850707]
[1734553865625,0.12549,209.52,209.44,46.59850707]
[1734553865922,0.12549,209.5,209.42,46.59850707]
[1734553866210,46.59850707,209.53,209.44,46.59850707]
[1734553866511,12.2122,209.57,209.36,46.59850707]
[1734553866512,0.12549,209.44,209.36,46.59850707]
[1734553866807,46.59850707,209.45,209.36,46.59850707]
[1734553866808,0.12549,209.41,209.36,46.59850707]
[1734553867104,46.59850707,209.47,209.38,46.59850707]
[1734553867310,0.12549,209.49,209.36,46.59850707]
[1734553867607,8.2562,209.5,209.38,46.59850707]
[1734553867803,46.59850707,209.47,209.38,46.59850707]
[1734553868005,0.12549,209.4,209.32,46.59850707]
[1734553868200,46.59850707,209.39,209.29,47.33192247]
[1734553868389,46.59850707,209.41,209.29,0.7334154]
[1734553868706,12.844,209.42,209.29,0.7334154]
[1734553868915,30.0,209.4,209.29,0.7334154]
[1734553869214,23.776884,209.41,209.29,0.7334154]
[1734553869386,53.776884,209.41,209.29,0.7334154]
[1734553869810,46.59850707,209.3,209.29,0.7334154]
[1734553870198,46.59850707,209.34,209.29,0.7334154]
[1734553870608,12.844,209.42,209.32,46.59850707]
[1734553870809,46.59850707,209.44,209.29,0.7334154]
[1734553870985,13.0477,209.52,209.31,0.12549]
[1734553871189,13.0477,209.52,209.32,0.71623675]
[1734553871692,13.0477,209.52,209.31,23.776884]
[1734553872115,46.59850707,209.32,209.29,0.7334154]
[1734553872453,46.59850707,209.44,209.29,0.7334154]
[1734553872454,46.59850707,209.3,209.29,0.7334154]
[1734553872616,46.59850707,209.37,209.29,0.7334154]
[1734553872817,8.259,209.42,209.29,0.7334154]
[1734553873539,0.12549,209.41,209.29,0.7334154]
[1734553873911,46.72399707,209.3,209.29,0.7334154]
[1734553874332,46.59850707,209.32,209.29,0.7334154]
[1734553874551,46.59850707,209.34,209.29,0.7334154]
[1734553874849,46.59850707,209.4,209.29,47.33192247]
[1734553875028,46.59850707,209.42,209.33,46.59850707]
[1734553875210,7.7873,209.52,209.42,23.776884]
[1734553875519,46.88490707,209.52,209.46,23.776884]
[1734553876427,0.2864,209.52,209.45,23.776884]
[1734553876611,0.2864,209.52,209.48,46.59850707]
[1734553876810,0.2864,209.52,209.45,23.776884]
[1734553877011,0.2864,209.52,209.5,46.59850707]
[1734553877219,46.59850707,209.6,209.51,23.776884]
[1734553877419,46.59850707,209.56,209.51,23.776884]
[1734553877617,46.59850707,209.57,209.48,46.59850707]
[1734553877813,0.12549,209.49,209.29,0.7334154]
[1734553878019,46.59850707,209.4,209.32,46.59850707]
[1734553878217,8.2421,209.62,209.4,0.12549]
[1734553878419,8.2421,209.62,209.33,0.71633834]
[1734553878611,8.2421,209.62,209.36,11.9406]
[1734553878823,8.2421,209.62,209.37,0.71593099]
[1734553879222,46.59850707,209.49,209.4,46.59850707]
[1734553879540,46.59850707,209.53,209.44,46.59850707]
[1734553879746,46.59850707,209.57,209.46,46.59850707]
[1734553880044,46.59850707,209.62,209.47,0.71580219]
[1734553880232,46.59850707,209.62,209.39,0.12549]
[1734553880543,7.5611,209.72,209.43,0.12549]
[1734553880724,7.5611,209.72,209.45,0.12549]
[1734553880926,8.223,209.82,209.52,0.12549]
[1734553881135,46.59850707,209.76,209.67,46.59850707]
[1734553881345,46.59850707,209.74,209.68,23.776884]
[1734553881644,8.223,209.82,209.54,23.776884]
[1734553881645,46.59850707,209.7,209.54,23.776884]
[1734553881940,46.59850707,209.7,209.42,83.5639]
[1734553881941,0.12549,209.54,209.4,2.91428621]
[1734553882120,0.12549,209.54,209.22,1.706]
[1734553882325,0.12549,209.54,209.27,11.9461]
[1734553882536,12.8753,209.53,209.27,12.66247913]
[1734553882734,12.8753,209.53,209.31,2.8106035]
[1734553883028,0.12549,209.49,209.29,0.7334154]
[1734553883220,46.59850707,209.33,209.29,0.7334154]
[1734553883653,46.59850707,209.31,209.29,0.7334154]
[1734553883860,0.12549,209.3,209.29,0.7334154]
[1734553886065,9e-05,209.3,209.29,0.7334154]
[1734553886240,11.9337,209.49,209.29,0.7334154]
[1734553886440,46.59850707,209.34,209.29,0.7334154]
[1734553886657,46.59850707,209.32,209.3,23.776884]
[1734553886950,46.59850707,209.36,209.29,0.7334154]
[1734553887180,46.59850707,209.38,209.29,47.33192247]
[1734553887535,46.59850707,209.4,209.29,47.33192247]
[1734553887882,46.59850707,209.34,209.29,0.7334154]
[1734553888673,46.59850707,209.3,209.29,0.7334154]
[1734553888831,46.72399707,209.3,209.29,0.7334154]
[1734553889035,46.59850707,209.3,209.29,0.7334154]
[1734553889436,46.59850707,209.34,209.29,0.7334154]
[1734553889641,12.0264,209.41,209.29,0.7334154]
[1734553889642,46.59850707,209.36,209.29,0.7334154]
[1734553890078,46.59850707,209.38,209.29,47.33192247]
[1734553890236,46.59850707,209.4,209.31,46.59850707]
[1734553890442,12.0264,209.41,209.29,0.7334154]
[1734553890443,46.59850707,209.34,209.29,0.7334154]
[1734553890660,46.59850707,209.36,209.3,23.776884]
[1734553891158,46.59850707,209.32,209.3,23.776884]
[1734553891349,46.59850707,209.32,209.29,0.7334154]
[1734553891684,46.59850707,209.36,209.3,23.776884]
[1734553891842,8.2231,209.5,209.3,23.776884]
[1734553891843,46.59850707,209.46,209.36,23.776884]
[1734553892046,2.87389296,209.55,209.43,23.776884]
[1734553892283,46.59850707,209.51,209.43,23.776884]
[1734553892488,49.47240003,209.55,209.47,23.776884]
[1734553892645,46.59850707,209.63,209.54,46.59850707]
[1734553892846,46.59850707,209.65,209.56,46.59850707]
[1734553893039,12.4768,209.67,209.47,23.776884]
[1734553893040,0.12549,209.56,209.47,23.776884]
[1734553893280,12.4768,209.67,209.47,23.776884]
[1734553893580,0.12549,209.62,209.29,5.2127154]
[1734553893755,12.9534,209.54,209.29,0.7334154]
[1734553893954,0.12549,209.49,209.29,0.7334154]
[1734553894345,46.59850707,209.33,209.29,0.7334154]
[1734553894543,46.59850707,209.35,209.29,0.7334154]
[1734553894793,0.12549,209.32,209.29,0.7334154]
[1734553895024,46.59850707,209.33,209.29,0.7334154]
[1734553895231,46.59850707,209.35,209.29,0.7334154]
[1734553895385,46.59850707,209.37,209.29,0.7334154]
[1734553895585,54.21890707,209.55,209.36,46.59850707]
[1734553895821,54.21890707,209.55,209.29,13.39480024]
[1734553896232,54.21890707,209.55,209.3,23.902374]
[1734553896428,7.6204,209.55,209.34,0.12549]
[1734553896627,13.0078,209.64,209.36,43.902374]
[1734553896922,13.0078,209.64,209.53,23.776884]
[1734553896923,46.59850707,209.59,209.53,23.776884]
[1734553897226,46.59850707,209.59,209.5,46.59850707]
[1734553897399,46.59850707,209.63,209.54,46.59850707]
[1734553897721,12.4191,209.74,209.61,23.776884]
[1734553898029,46.59850707,209.72,209.64,46.59850707]
[1734553898229,12.4191,209.89,209.71,46.59850707]
[1734553898438,46.59850707,209.83,209.76,46.59850707]
[1734553898648,46.59850707,209.81,209.72,70.37539107]
[1734553898849,46.59850707,209.79,209.71,23.776884]
[1734553899151,0.12549,209.74,209.67,23.776884]
[1734553899508,46.59850707,209.79,209.7,46.59850707]
[1734553899745,46.59850707,209.79,209.71,23.776884]
[1734553899943,12.4191,209.89,209.78,46.59850707]
[1734553900115,46.59850707,209.88,209.79,23.776884]
[1734553900450,7.9658,209.9,209.83,23.776884]
[1734553900626,7.9658,209.9,209.78,46.59850707]
[1734553900627,46.59850707,209.88,209.78,46.59850707]
[1734553900809,46.59850707,209.83,209.74,46.59850707]
[1734553901015,46.59850707,209.86,209.78,46.59850707]
[1734553901240,0.12549,209.87,209.81,46.59850707]
[1734553901443,12.0334,209.98,209.67,23.8469]
[1734553901444,12.0334,209.98,209.86,23.776884]
[1734553901750,12.0334,209.98,209.91,46.59850707]
[1734553902168,7.5282,210.01,209.95,23.776884]
[1734553902311,34.0204703,210.09,209.95,24.49114604]
[1734553902641,7.5282,210.11,209.99,23.776884]
[1734553902823,0.12549,210.05,209.86,20.0]
[1734553903010,0.12549,210.05,209.88,23.776884]
[1734553903204,0.12549,209.92,209.84,46.59850707]
[1734553903443,46.59850707,209.85,209.76,46.59850707]
[1734553903747,0.12549,209.78,209.71,46.59850707]
[1734553903946,46.59850707,209.88,209.63,11.9254]
[1734553903947,46.59850707,209.82,209.73,46.59850707]
[1734553904112,0.12549,209.84,209.68,0.12549]
[1734553904439,0.12549,209.84,209.69,0.7149534]
[1734553904741,20.0,209.87,209.69,0.7149534]
[1734553904935,7.9366,209.9,209.7,11.9217]
[1734553905235,7.9366,209.9,209.82,46.59850707]
[1734553905532,46.59850707,209.95,209.86,46.59850707]
[1734553905941,7.5791,210.02,209.93,46.59850707]
[1734553906145,59.78830707,210.09,210.0,46.59850707]
[1734553906344,46.59850707,210.05,209.96,46.59850707]
[1734553906528,13.1898,210.09,209.92,23.776884]
[1734553906730,46.59850707,209.98,209.87,23.776884]
[1734553906936,46.59850707,209.94,209.85,46.59850707]
[1734553907151,46.59850707,209.94,209.89,23.776884]
[1734553907664,0.12549,209.89,209.77,46.59850707]
[1734553907867,46.59850707,209.82,209.73,46.59850707]
[1734553908028,66.59850707,209.82,209.73,46.59850707]
[1734553908228,46.59850707,209.8,209.71,46.59850707]
[1734553908520,46.59850707,209.8,209.51,23.90923323]
[1734553908521,0.12549,209.74,209.62,11.9261]
[1734553908749,0.12549,209.72,209.62,46.59850707]
[1734553908949,46.59850707,209.68,209.58,49.51022226]
[1734553909126,46.59850707,209.68,209.47,0.71536425]
[1734553909127,0.12549,209.65,209.5,11.9328]
[1734553909329,0.12549,209.61,209.51,46.59850707]
[1734553909751,0.12549,209.55,209.47,46.59850707]
[1734553910045,46.59850707,209.56,209.47,46.59850707]
[1734553910251,0.12549,209.55,209.47,46.59850707]